Cogmind - Beta 16.1 @@@ ROGUE MODE // 2026.05.03 @ 17:48:14 Player: KURIIRI Result: Self-destructed Performance ------------- Evolutions (0) 0 Regions Visited (3) 600 Robots Destroyed (41) 205 Value Destroyed (1011) 1011 Prototype IDs (15) 300 Alien Tech Used (0) 0 Bonus (0) 0 TOTAL SCORE: 2116 Bonus ------- None Cogmind --------- Core Integrity 62/250 Matter 290/300 Energy 125/125 System Corruption 0% Temperature Cool (0) Movement Treading (160) Location -7/Recycling Parts ------- > --- POWER (1) -------- Light Ion Engine > --- PROPULSION (2) --- Light Treads Improved Treads > --- UTILITY (2) ------ Large Storage Unit Subdweller Optics > --- WEAPON (2) ------- Subdweller Laser Subdweller Beam Cannon > --- INVENTORY (15) --- Improved Treads Compact Wheel Subdweller Monowheel Subdweller Monowheel High-capacity Storage Unit Subdweller Optics Improved Terrain Scanner Rainbow Chip EM Pulse Gun EM Pulse Gun Subdweller Laser Light Assault Rifle Grenade Launcher Subdweller Shrapnel Launcher Multitool Peak State ------------ > --- POWER ------------ Light Ion Engine > --- PROPULSION ------- Light Treads Improved Treads > --- UTILITY ---------- Large Storage Unit Medium Armor Plating > --- WEAPON ----------- Particle Gun Subdweller Laser > --- INVENTORY -------- Light Treads Improved Treads Improved Treads Compact Wheel High-capacity Storage Unit Improved Terrain Scanner Rainbow Chip EM Pulse Gun EM Pulse Gun Riot Gun Subdweller Laser Light Assault Rifle Grenade Launcher Subdweller Shrapnel Launcher Ripper [Rating: 14] Favorites ----------- Power Light Ion Engine Engine Light Ion Engine Propulsion Light Treads Treads Light Treads Leg Aluminum Leg Utility Large Storage Unit Device Improved Terrain Scanner Storage Large Storage Unit Protection Medium Armor Plating Weapon Subdweller Laser Energy Gun Subdweller Laser Energy Cannon Subdweller Beam Cannon Ballistic Gun Light Assault Rifle Launcher Grenade Launcher Slashing Weapon Ripper Build | -11 -10 -10 -7 ------- Run | Yrd Mat Sub Rec Slots Evolved . | . . . . Power . | . . . . Propulsion . | . . . . Utility . | . . . . Weapon . | . . . . Parts Attached 30 | 3 13 14 . Power 2 | . 1 1 . Engine 2 | . 1 1 . Core . | . . . . Reactor . | . . . . Propulsion 7 | 2 2 3 . Treads 7 | 2 2 3 . Leg . | . . . . Wheel . | . . . . Hover . | . . . . Flight . | . . . . Utility 7 | 1 4 2 . Device 3 | 1 1 1 . Storage 1 | . 1 . . Processor . | . . . . Hackware . | . . . . Protection 3 | . 2 1 . Artifact . | . . . . Weapon 14 | . 6 8 . Energy Gun 8 | . 3 5 . Energy Cannon 1 | . . 1 . Ballistic Gun 2 | . 2 . . Ballistic Cannon . | . . . . Launcher 2 | . 1 1 . Special Weapon . | . . . . Impact Weapon . | . . . . Slashing Weapon 1 | . . 1 . Piercing Weapon . | . . . . Special Melee Weapon . | . . . . Unidentified Prototypes . | . . . . Parts Lost 12 | . 3 9 . Power 1 | . . 1 . Propulsion 2 | . . 2 . Utility 3 | . 1 2 . Weapon 6 | . 2 4 . Highest Loss Streak 4 | . 3 4 . To Critical Strikes . | . . . . Average Backups 12 | 5 9 13 15 Power . | 1 1 . . Propulsion 3 | 3 2 3 4 Utility 3 | . 2 3 4 Weapon 5 | 1 3 6 6 Tool/Special . | . . . . Unused Backups 22 | 6 6 2 8 Power 1 | 1 . . . Propulsion 7 | 2 2 . 3 Utility 6 | 1 1 1 3 Weapon 7 | 2 3 1 1 Tool/Special 1 | . . . 1 Average Slot Usage (%) 97 | . 99 96 100 Engine 13 | . 14 13 14 Treads 27 | . 28 27 28 Device 3 | . 7 1 14 Storage 14 | . 14 14 14 Protection 8 | . 5 9 . Energy Gun 18 | . 9 23 14 Energy Cannon 2 | . . 3 14 Ballistic Gun 6 | . 16 . . Peak Build Rating 14 | 9 12 14 14 Average Rating 11 | 7 10 12 14 On Entrance 10 | 6 9 12 14 Avg Prop Armor Cover (%) . | . . . . Naked Turns . | . . . . Heaviest Build 40 | 11 36 40 37 Greatest Support 46 | 40 46 46 43 Greatest Overweight (x) . | . . . . Average Overweight (x) . | . . . . Largest Inventory Capacity 15 | 8 15 15 15 Average Capacity 13 | 8 9 15 15 Most Carried 15 | 6 15 15 15 Average Carried 12 | 5 9 13 15 Final Capacity 15 | 8 15 15 15 Final Carried 15 | 4 15 15 15 Class Distribution -------------------- 77% | Mutant 22% | Scavenger-Mutant Dominant Class ---------------- Mutant | -10/Materials Mutant | -10/Subcaves Scavenger-Mutant | -7/Recycling Resources | -11 -10 -10 -7 ----------- Run | Yrd Mat Sub Rec Matter Collected 1162 | 239 453 470 . Remotely . | . . . . Salvage Created 1232 | 105 483 644 . Parts 79 | 4 38 37 . Haulers Intercepted 2 | . 2 . . Recyclers Shooed . | . . . . Parts Field Recycled . | . . . . Retrieved Matter . | . . . . Parts Self-Destructed 17 | . . 17 . Prevented 3 | . . 3 . Parts Restored . | . . . . Kills | -11 -10 -10 -7 ------- Run | Yrd Mat Sub Rec Combat Hostiles Destroyed 32 | . 15 17 . Guns 15 | . 9 6 . Cannons 1 | . . 1 . AOE 14 | . 6 8 . Classes Destroyed 10 | 2 4 4 . Tunneler 1 | 1 . . . Hauler 2 | . 2 . . Recycler 1 | 1 . . . Turret 2 | . . 2 . Watcher 3 | . 3 . . Swarmer 13 | . 9 4 . Grunt 7 | . 6 1 . Sentry 1 | . . 1 . Artisan 2 | . . 2 . Subdweller 11 | . . 11 . Best Kill Streak 6 | 1 4 6 . Combat Bots Only 4 | . 3 4 . Max Kills in Single Turn 4 | 1 2 4 . Gunslinging . | . . . . Exploded 3 | . 2 3 . Melee . | . . . . Uniques/NPCs Destroyed . | . . . . Combat | -11 -10 -10 -7 -------- Run | Yrd Mat Sub Rec Hostile Shots Fired 175 | . 104 71 . Missed 48 | . 23 25 . Hits 127 | . 81 46 . Projectile 127 | . 81 46 . AOE 4 | . . 4 . Critical Strikes 2 | . 1 1 . Damage Taken 1979 | . 874 1105 . Core 188 | . 71 117 . Absorbed by Shields . | . . . . Core Remaining (%) 100 | 100 . . . Volleys Fired 155 | 9 69 77 . Largest 2 | 2 2 2 . Hottest 140 | 60 85 140 . Shots Fired 255 | 18 123 114 . Gun 219 | 18 116 85 . Cannon 11 | . . 11 . Launcher 25 | . 7 18 . Special . | . . . . Kinetic 125 | 9 104 12 . Thermal 64 | 9 6 49 . Explosive 13 | . 7 6 . Electromagnetic 53 | . 6 47 . Robot Hit Streak 15 | 3 12 15 . Robot Miss Streak 5 | 3 3 5 . Penetration Max . | . . . . Secondary Targets . | . . . . Shots Hit Robots 150 | 7 77 66 . Core Hits 68 | 3 35 30 . Critical Kills . | . . . . Critical Parts Destroyed . | . . . . Critical Strikes 2 | . . 2 . Destroy 1 | . . 1 . Corrupt 1 | . . 1 . Melee Attacks . | . . . . Impact . | . . . . Slashing . | . . . . Piercing . | . . . . Sneak Attacks . | . . . . Combat Hostiles . | . . . . Follow-up Attacks . | . . . . Damage Inflicted 3368 | 83 1060 2225 . Guns 1452 | 83 643 726 . Cannons 183 | . . 183 . Explosions 1712 | . 396 1316 . Melee . | . . . . Ramming 21 | . 21 . . Kinetic 1488 | 21 546 921 . Thermal 670 | 62 40 568 . Explosive 741 | . 396 345 . Electromagnetic 448 | . 57 391 . Impact . | . . . . Slashing . | . . . . Piercing . | . . . . Highest Corruption . | . . . . Average Corruption . | . . . . Corruption Purged . | . . . . Corruption Blocked . | . . . . Overload Shots . | . . . . Overflow Damage 84 | . 10 74 . Projectiles . | . . . . Explosions 84 | . 10 74 . Melee . | . . . . Knockbacks . | . . . . Impact . | . . . . Kinetic . | . . . . Secondary . | . . . . Self-Inflicted Damage 57 | . 14 43 . Shots 2 | . 1 1 . Rammed 5 | . 5 . . Targets Rammed 5 | . 5 . . Kicked . | . . . . Crushed . | . . . . Highest Temperature 322 | 40 165 322 . Average Temperature 61 | 18 74 57 . Received Heat Transfer 841 | . 345 496 . Effects 2 | . . 2 . Interference 2 | . . 2 . Siege Activations . | . . . . Martial Activations . | . . . . Shielding Activations . | . . . . Robots Disrupted . | . . . . Combat Hostiles . | . . . . Robots Corrupted 2 | . . 2 . Combat Hostiles 2 | . . 2 . Parts Fried 7 | . . 7 . Impact Corruptions . | . . . . Robots Melted . | . . . . Combat Hostiles . | . . . . Parts Melted 1 | . . 1 . Heat Transferred 958 | 150 99 709 . Parts Sabotaged . | . . . . Parts Stolen . | . . . . Parts Stripped . | . . . . Power Chain Reactions 1 | . . 1 . Alert | -11 -10 -10 -7 ------- Run | Yrd Mat Sub Rec Maximum Alert Level . | . . . . Low Security (%) 100 | 100 100 . 100 Level 1 . | . . . . Level 2 . | . . . . Level 3 . | . . . . Level 4 . | . . . . Level 5 . | . . . . High Security . | . . . . Max Security . | . . . . Peak Influence 197 | 5 197 . 30 Initial . | . . . . Average 80 | . 85 . 23 Influence Increases 745 | 10 500 205 30 Destroy 0b10 Robot/C 460 | . 300 160 . Destroy 0b10 Robot/NC 35 | 10 25 . . Destroy Leader 70 | . 70 . . Successful Hack 16 | . 16 . . Select Force Hacks 60 | . 30 . 30 Disable Machine 30 | . 30 . . Destroy Structure 29 | . 29 . . Lose Combat Pursuer 45 | . . 45 . Influence Decreases 715 | 10 416 289 . Entered New Map 41 | . . 41 . Time Decay 634 | 10 386 238 . Lost Part 40 | . 30 10 . Squads Dispatched 2 | . 2 . . Investigation 2 | . 2 . . Extermination . | . . . . Reinforcement . | . . . . Assault . | . . . . Garrison . | . . . . Intercept . | . . . . Searches Triggered . | . . . . Construction Impeded . | . . . . Haulers Reinforced . | . . . . Active Scanning Responses . | . . . . Cargo Convoy Interrupts . | . . . . Stealth | -11 -10 -10 -7 --------- Run | Yrd Mat Sub Rec Distress Signals . | . . . . Communications Jammed . | . . . . Distress Signals . | . . . . Times Spotted 37 | . 18 19 . Peak Tracking Total 6 | . 4 6 . Tactical Retreats 1 | . . 1 . Traps | -11 -10 -10 -7 ------- Run | Yrd Mat Sub Rec Traps Triggered . | . . . . Indirectly . | . . . . Trap Hack Attempts . | . . . . Triggered . | . . . . Disarmed . | . . . . Reprogrammed . | . . . . Reused . | . . . . Traps Extracted . | . . . . Installed . | . . . . Triggered . | . . . . Machines | -11 -10 -10 -7 ---------- Run | Yrd Mat Sub Rec Machines Disabled 6 | . 2 4 . Max in Single Turn 2 | . 1 2 . Machines Repaired . | . . . . Machines Dismantled . | . . . . Machines Sabotaged . | . . . . Overloaded Fab Kills . | . . . . Hacking | -11 -10 -10 -7 --------- Run | Yrd Mat Sub Rec Machines Accessed 11 | . 8 2 1 Terminals 7 | . 7 . . Fabricators . | . . . . Repair Stations . | . . . . Recycling Units 2 | . 1 . 1 Scanalyzers . | . . . . Garrison Access . | . . . . Total Hacks 27 | . 21 5 1 Successful 13 | . 7 5 1 Failed 13 | . 13 . . Catastrophic 1 | . 1 . . Database Lockouts 1 | . 1 . . Manual 10 | . 9 . 1 Terminals 20 | . 20 . . Fabricators . | . . . . Repair Stations . | . . . . Recycling Units 2 | . 1 . 1 Scanalyzers . | . . . . Garrison Access . | . . . . Terminal Hacks 10 | . 5 5 . Record 4 | . . 4 . Robot Analysis 1 | . 1 . . Prototype ID Bank 1 | . 1 . . Terminal Index 1 | . 1 . . Locate Traps 1 | . 1 . . Registered Components 1 | . 1 . . Proto ID Catalog 1 | . . 1 . Fabricator Hacks . | . . . . Repair Station Hacks . | . . . . Recycling Unit Hacks . | . . . . Scanalyzer . | . . . . Garrison Access Hacks . | . . . . Unauthorized Hacks 3 | . 2 . 1 Terminals 1 | . 1 . . Botnet 1 | . 1 . . Fabricators . | . . . . Repair Stations . | . . . . Recycling Units 2 | . 1 . 1 Tunnel 2 | . 1 . 1 Scanalyzers . | . . . . Garrison Access . | . . . . Data Cores Recovered . | . . . . Used . | . . . . Hacking Detections 6 | . 6 . . Full Trace Events 1 | . 1 . . Feedback Events . | . . . . Feedback Blocked . | . . . . Robot Schematics Acquired . | . . . . Robots Built . | . . . . Authchips . | . . . . Time . | . . . . Total Robot Build Rating . | . . . . Part Schematics Acquired . | . . . . Parts Built . | . . . . Authchips . | . . . . Time . | . . . . Total Part Build Rating . | . . . . Part Studies Acquired . | . . . . Parts Repaired . | . . . . Time . | . . . . Parts Recycled . | . . . . Recycled Matter . | . . . . Retrieved Matter . | . . . . Retrieved Components . | . . . . Parts Scanalyzed . | . . . . Part Schematics Acquired . | . . . . Parts Damaged . | . . . . Bothacking | -11 -10 -10 -7 ------------ Run | Yrd Mat Sub Rec Used RIF Installer . | . . . . Robots Hacked . | . . . . Non-combat . | . . . . Combat . | . . . . Robot Hacks Applied . | . . . . Relay Couplers Released . | . . . . Fabnet Peak Effective % . | . . . . Robots Rewired . | . . . . Allies Hacked . | . . . . Hacks Repelled . | . . . . Allies | -11 -10 -10 -7 -------- Run | Yrd Mat Sub Rec Total Allies . | . . . . Largest Group . | . . . . Highest-Rated Group . | . . . . Highest-Rated Ally . | . . . . Total Orders . | . . . . Ally Attacks . | . . . . Total Damage . | . . . . Kills . | . . . . Allies Corrupted . | . . . . Allies Melted . | . . . . Intel | -11 -10 -10 -7 ------- Run | Yrd Mat Sub Rec Active Infowar (turns) 792 | 30 742 2 18 Optics 20 | . . 2 18 Terrain 584 | 30 554 . . Seismic 188 | . 188 . . Robot Analysis Total 1 | . 1 . . Derelict Logs Recovered 3 | . . 3 . Drone Launches . | . . . . Drone Recoveries . | . . . . Exploration | -11 -10 -10 -7 ------------- Run | Yrd Mat Sub Rec Turns Passed 3886 | 80 1362 2426 18 Spaces Moved 1943 | 42 615 1275 11 Core . | . . . . Treads 1904 | 3 615 1275 11 Legs 39 | 39 . . . Wheels . | . . . . Hover . | . . . . Flight . | . . . . Fastest Speed 120 | 120 160 160 160 Average Speed 159 | 122 160 160 160 Slowest Speed 160 | 160 160 160 160 Overloaded Moves . | . . . . Propulsion Burnouts . | . . . . Robots Hopped . | . . . . Potential Cave-ins . | . . . . Cave-ins Triggered . | . . . . Exploration Rate (%) 42 | 4 79 80 6 Regions Visited 3 Branch Regions 2 Pre-discovered Areas 3 | . 1 1 1 Known Exits Taken 1 | . . 1 . Unknown Exits Taken 2 | 1 1 . . Scrap Searched 4 | . . 4 . Spaces Dug 17 | . 13 4 . Terrain Destroyed 164 | . 28 136 . Melee . | . . . . Projectile 7 | . . 7 . AOE 157 | . 28 129 . Terrain Rammed . | . . . . Walls Destroyed . | . . . . Machines Disabled . | . . . . Actions | -11 -10 -10 -7 --------- Run | Yrd Mat Sub Rec Total 2498 | 55 888 1544 11 Wait 318 | . 161 157 . Move 1940 | 41 614 1274 11 Hop . | . . . . Pick Up 27 | . 17 10 . Fast Attach 6 | 1 2 3 . Attach 10 | 2 1 7 . Detach 1 | . . 1 . Swap 22 | . 11 11 . Drop 14 | 2 8 4 . Fire 155 | 9 69 77 . Melee . | . . . . Ram . | . . . . Kick . | . . . . Crush 5 | . 5 . . Escape Stasis . | . . . . Rewire . | . . . . Trap . | . . . . Miscellaneous . | . . . . Route ------- -11/Scrapyard -10/Materials (discovered 5 exits: [*Mat x3] / [*Min] / *Sub) -10/Subcaves (discovered 3 exits: *Mat x2 / *Rec) -7/Recycling History --------- Turn | Location | Event 21 | -11/Scrapyard | Discovered new exit (range 3) 81 | -11/Scrapyard | Entered Materials 308 | -10/Materials | Build established: Mutant 405 | -10/Materials | Discovered new exit (range 3) 766 | -10/Materials | Discovered new exit (range 4) 924 | -10/Materials | Lost 3 parts (1u2w) 1004 | -10/Materials | Discovered new exit (range 10) 1024 | -10/Materials | Central database locked down 1072 | -10/Materials | Discovered new exit (range 8) 1078 | -10/Materials | Discovered new exit (range 16) 1443 | -10/Materials | Entered Subcaves 1504 | -10/Subcaves | Visited Clippyterm 1508 | -10/Subcaves | Identified exit to Materials 1508 | -10/Subcaves | Identified exit to Recycling 1508 | -10/Subcaves | Learned 40 Factory zone layouts 1568 | -10/Subcaves | Learned Materials emergency access door positions 1858 | -10/Subcaves | Shifting Twisted Machinery released Mak. Light Armor Plating 1869 | -10/Subcaves | Shifting Twisted Machinery released Sub. Shrapnel Launcher 1961 | -10/Subcaves | A swath of the cavern ceiling suddenly collapsed 2055 | -10/Subcaves | Ambushed by Subdweller buried in earth 2254 | -10/Subcaves | Learned Materials emergency access door positions 2356 | -10/Subcaves | Learned location of Zion (-6) 2356 | -10/Subcaves | Met a Zionite searching for "candidates" 2358 | -10/Subcaves | Shifting Twisted Machinery released Ripper 2364 | -10/Subcaves | Shifting Twisted Machinery released Piercing Trap 2451 | -10/Subcaves | A swath of the cavern ceiling suddenly collapsed 2516 | -10/Subcaves | Visited 4L-MR0's lab 2531 | -10/Subcaves | Found Rainbow Chip 2625 | -10/Subcaves | Core integrity fell below 50% 2914 | -10/Subcaves | Build established: Scavenger-Mutant 3232 | -10/Subcaves | Lost 4 parts (1n1u2w) 3444 | -10/Subcaves | Learned location of 1 exit from Materials 3485 | -10/Subcaves | Build established: Mutant 3869 | -10/Subcaves | Entered Recycling 3887 | -7/Recycling | Self-destructed Last Messages --------------- 03217_ Acquired Sub. Beam Cannon. 03222_ Acquired 10 matter. 03444_ Acquired derelict log, extracted data. Data stored: Materials exits (x1). 03479_ 1P-P5K(u) cries out in pain. 03479_ 1P-P5K(u) destroyed. 03489_ Acquired Multitool. 03497_ VS-SI7(R): "SUBHATE!" 03517_ VS-SI7(R) destroyed. 03550_ Subatomizers dissect the Sub. Monowheel. 03551_ Acquired Sub. Optics. 03554_ Acquired Sub. Monowheel. 03589_ Acquired Sub. Optics. 03724_ Subatomizers dissect the Sub. Monowheel. LOCATION=RECYCLING GOAL=ESCAPE 03873_ Connecting with Recycling Unit... >>Force(Tunnel) DISCOVERED[-5/Hub_04(d)] 03887_ Connecting with Terminal... Map ----- +----------------------------------------------------+ | ?????????????????????????????????????????????????? | | ?????????????????????????????????????????????????? | | ?????????????????????????????????????????????????? | | ?????????????????????????????????????????????????? | | ?????????????????????????????????????????????????? | | ?????????????????????????????????????????????????? | | ?????????????????????????????????????????????????? | | ?????????????????????????????????????????????????? | | ?????????????????????????????????????????????????? | | ?????????????????????????????????????????????????? | | ?????????????????????????????????????????????????? | | ????????????????????????????#######??????????????? | | ???????????????????????????## #??????????????? | | ???????????????????????????? #??????????????? | | ???????????????????????????? #??????????????? | | ????????????????????????????? #??????????????? | | ????????????????????????????? ???????????????? | | ?????????????????????????????# #???????????????? | | ?????????????????????????????# #???????????????? | | ???????????????????########### #???????????????? | | ???????????????????# # ###?????????????? | | ???????????????????# + ""#?????????????? | | ???????????????????# """ # Y"#?????????????? | | ???????????????????# """ # ""#?????????????? | | ???????????????????# """ """ # ###?????????????? | | ???????????????????# """ @T" # #???????????????? | | ???????????????????# """ """ # #???????????????? | | ???????????????????# #####???????????????? | | ???????????????????###########???????????????????? | | ?????????????????????????????????????????????????? | | ?????????????????????????????????????????????????? | | ?????????????????????????????????????????????????? | | ?????????????????????????????????????????????????? | | ?????????????????????????????????????????????????? | | ?????????????????????????????????????????????????? | | ?????????????????????????????????????????????????? | | | | | | | | | | | | | | | | | | | | | | | | | | | | | +----------------------------------------------------+ Best States ------------- Heat Dissipation 25 Energy Generation 10 Energy Capacity 250 Matter Stores 300 Matter Capacity 300 Sight Range 21 Terrain Scan Range 16 Terrain Scan Density 10 Armor Coverage 225 Evasion (%) 55 Recoil Reduction 2 Item Schematics ----------------- None Robot Schematics ------------------ None Fabricated ------------ Nothing Repaired ---------- Nothing Studied --------- None Alien Tech Used ----------------- None Achievements -------------- None Challenges ------------ None Game ------ Seed IonicSwarmPropulsion Manual? 0 Play Time 00:17:21 Cumulative 441.7 hours Start 2026.05.03 @ 17:15:18 End 2026.05.03 @ 17:48:14 Sessions 1 Manual Loads 0 Difficulty Rogue Special Mode None Game No. 379 Rogue 343 Adventurer 36 Explorer 0 Win Type - Total 5 Types 2/0/0/1/0/0/0/2/0/0 Lore% 81 Gallery% 69 Achievement% 60 Wizard Run 0 Options --------- Layout 1 ASCII 0 Keyboard 0 Movement Numpad Keybinds 0 Fullscreen 1 Font 48/Smallcaps Map View 50x35 Zoom Use 0% Tactical HUD 1 Map Filters NONE Filters NONE Steam 1 RUN: 8f666220-50d4-4c11-bb06-998592dbe6d3